[Event "Titled Tuesday Blitz June 20 Early 2023"]
[White "Yuan, Qingyu"]
[Black "Sowul, Bartosz"]
[WhiteFideId "8609772"]
[BlackFideId "1137590"]
[WhiteElo "2359"]
[BlackElo "2188"]
[Result "0-1"]
[Round "7"]
[TimeControl "180+2"]
[Date "2023.06.20"]
[WhiteClock "0:00:00"]
[BlackClock "0:00:23"]
[Board "46"]

1. e4 {[%clk 0:02:57]}  c5 {[%clk 0:02:59]} 2. Nf3 {[%clk 0:02:57]}  d6 {[%clk 0:02:59]} 3. Bb5+ {[%clk 0:02:57]}  Nd7 {[%clk 0:02:59]} 4. c3 {[%clk 0:02:57]}  a6 {[%clk 0:02:49]} 5. Ba4 {[%clk 0:02:57]}  Nf6 {[%clk 0:02:44]} 6. Qe2 {[%clk 0:02:57]}  b5 {[%clk 0:02:41]} 7. Bc2 {[%clk 0:02:58]}  Bb7 {[%clk 0:02:38]} 8. O-O {[%clk 0:02:56]}  e6 {[%clk 0:02:35]} 9. d4 {[%clk 0:02:56]}  Be7 {[%clk 0:02:27]} 10. Rd1 {[%clk 0:02:54]}  Qc7 {[%clk 0:02:25]} 11. Bd3 {[%clk 0:02:49]}  Rc8 {[%clk 0:02:13]} 12. Nbd2 {[%clk 0:02:34]}  e5 {[%clk 0:02:04]} 13. dxe5 {[%clk 0:02:32]}  Nxe5 {[%clk 0:01:57]} 14. Nxe5 {[%clk 0:02:32]}  dxe5 {[%clk 0:01:58]} 15. c4 {[%clk 0:02:33]}  b4 {[%clk 0:01:49]} 16. Nf1 {[%clk 0:02:32]}  O-O {[%clk 0:01:48]} 17. f3 {[%clk 0:02:22]}  Rfd8 {[%clk 0:01:47]} 18. Ne3 {[%clk 0:02:22]}  Rd4 {[%clk 0:01:46]} 19. Nd5 {[%clk 0:02:07]}  Bxd5 {[%clk 0:01:28]} 20. exd5 {[%clk 0:01:56]}  e4 {[%clk 0:01:25]} 21. fxe4 {[%clk 0:01:42]}  Bd6 {[%clk 0:01:21]} 22. h3 {[%clk 0:00:55]}  Bh2+ {[%clk 0:01:02]} 23. Kh1 {[%clk 0:00:51]}  Re8 {[%clk 0:01:03]} 24. Bg5 {[%clk 0:00:35]}  Nxe4 {[%clk 0:00:55]} 25. Bxe4 {[%clk 0:00:34]}  Rdxe4 {[%clk 0:00:56]} 26. Qf1 {[%clk 0:00:33]}  Be5 {[%clk 0:00:53]} 27. Rd2 {[%clk 0:00:30]}  f6 {[%clk 0:00:50]} 28. Qf3 {[%clk 0:00:05]}  Bd6 {[%clk 0:00:37]} 29. Rf1 {[%clk 0:00:02]}  fxg5 {[%clk 0:00:34]} 30. Rdf2 {[%clk 0:00:03]}  Qe7 {[%clk 0:00:34]} 31. Qh5 {[%clk 0:00:03]}  g6 {[%clk 0:00:33]} 32. Qf3 {[%clk 0:00:03]}  Rf4 {[%clk 0:00:33]} 33. Qd3 {[%clk 0:00:02]}  Rxf2 {[%clk 0:00:33]} 34. Rxf2 {[%clk 0:00:03]}  Qe1+ {[%clk 0:00:31]} 35. Rf1 {[%clk 0:00:04]}  Qe5 {[%clk 0:00:31]} 36. Kg1 {[%clk 0:00:03]}  Qh2+ {[%clk 0:00:29]} 37. Kf2 {[%clk 0:00:04]}  Rf8+ {[%clk 0:00:24]} 38. Ke2 {[%clk 0:00:01]}  Qxg2+ {[%clk 0:00:23]} 39. Rf2 {[%clk 0:00:00]}  Qxf2+ {[%clk 0:00:23]} 0-1


[Site "https://www.chess.com"]

[Event "Titled Tuesday Blitz June 20 Early 2023"]
[White "Pham, Khoi"]
[Black "Tristan, Leonardo"]
[WhiteFideId "1054988"]
[BlackFideId "113816"]
[WhiteElo "2565"]
[BlackElo "2461"]
[Result "0-1"]
[Round "7"]
[TimeControl "180+2"]
[Date "2023.06.20"]
[WhiteClock "0:00:20"]
[BlackClock "0:00:17"]
[Board "52"]

1. e4 {[%clk 0:02:59]}  d5 {[%clk 0:03:00]} 2. exd5 {[%clk 0:02:59]}  Qxd5 {[%clk 0:03:01]} 3. Nc3 {[%clk 0:03:00]}  Qa5 {[%clk 0:03:01]} 4. Nf3 {[%clk 0:03:00]}  Nf6 {[%clk 0:03:01]} 5. Bc4 {[%clk 0:02:59]}  Nc6 {[%clk 0:03:00]} 6. O-O {[%clk 0:02:59]}  Bg4 {[%clk 0:02:59]} 7. h3 {[%clk 0:02:42]}  Bh5 {[%clk 0:02:59]} 8. Re1 {[%clk 0:02:15]}  O-O-O {[%clk 0:02:56]} 9. d3 {[%clk 0:02:14]}  Nd4 {[%clk 0:02:48]} 10. Bf4 {[%clk 0:01:56]}  Bxf3 {[%clk 0:02:37]} 11. gxf3 {[%clk 0:01:57]}  Qh5 {[%clk 0:02:37]} 12. Kg2 {[%clk 0:01:56]}  Qg6+ {[%clk 0:02:19]} 13. Bg3 {[%clk 0:01:51]}  e6 {[%clk 0:02:05]} 14. Ne4 {[%clk 0:01:47]}  Nh5 {[%clk 0:01:59]} 15. Qd2 {[%clk 0:01:42]}  f5 {[%clk 0:01:40]} 16. Qa5 {[%clk 0:00:56]}  Nxg3 {[%clk 0:01:15]} 17. Nxg3 {[%clk 0:00:53]}  f4 {[%clk 0:01:00]} 18. Qxa7 {[%clk 0:00:51]}  fxg3 {[%clk 0:01:00]} 19. fxg3 {[%clk 0:00:50]}  Bd6 {[%clk 0:00:28]} 20. g4 {[%clk 0:00:43]}  Qf6 {[%clk 0:00:19]} 21. Qa8+ {[%clk 0:00:22]}  Kd7 {[%clk 0:00:19]} 22. Qxb7 {[%clk 0:00:23]}  Qf4 {[%clk 0:00:20]} 23. Bb5+ {[%clk 0:00:13]}  Ke7 {[%clk 0:00:19]} 24. c3 {[%clk 0:00:04]}  Qg3+ {[%clk 0:00:16]} 25. Kf1 {[%clk 0:00:04]}  Qxh3+ {[%clk 0:00:11]} 26. Kf2 {[%clk 0:00:05]}  Qh2+ {[%clk 0:00:11]} 27. Ke3 {[%clk 0:00:05]}  Qf4+ {[%clk 0:00:08]} 28. Kf2 {[%clk 0:00:05]}  Rb8 {[%clk 0:00:08]} 29. Qe4 {[%clk 0:00:05]}  Qxe4 {[%clk 0:00:08]} 30. Rxe4 {[%clk 0:00:05]}  Nxb5 {[%clk 0:00:08]} 31. Rae1 {[%clk 0:00:06]}  Kd7 {[%clk 0:00:08]} 32. Rxe6 {[%clk 0:00:06]}  Rbe8 {[%clk 0:00:08]} 33. R6e4 {[%clk 0:00:06]}  Rxe4 {[%clk 0:00:08]} 34. dxe4 {[%clk 0:00:07]}  c6 {[%clk 0:00:09]} 35. a4 {[%clk 0:00:07]}  Nc7 {[%clk 0:00:09]} 36. Ke3 {[%clk 0:00:07]}  Bc5+ {[%clk 0:00:09]} 37. Kd3 {[%clk 0:00:08]}  Rf8 {[%clk 0:00:10]} 38. Rf1 {[%clk 0:00:07]}  Ne6 {[%clk 0:00:10]} 39. b4 {[%clk 0:00:07]}  Bd6 {[%clk 0:00:11]} 40. Kc4 {[%clk 0:00:06]}  Be5 {[%clk 0:00:11]} 41. a5 {[%clk 0:00:06]}  Kc7 {[%clk 0:00:12]} 42. b5 {[%clk 0:00:03]}  cxb5+ {[%clk 0:00:12]} 43. Kxb5 {[%clk 0:00:04]}  Bxc3 {[%clk 0:00:12]} 44. Rc1 {[%clk 0:00:04]}  Rxf3 {[%clk 0:00:12]} 45. Kc4 {[%clk 0:00:05]}  Kd6 {[%clk 0:00:12]} 46. Rxc3 {[%clk 0:00:05]}  Rxc3+ {[%clk 0:00:12]} 47. Kxc3 {[%clk 0:00:05]}  Kc5 {[%clk 0:00:07]} 48. Kd3 {[%clk 0:00:05]}  Kb5 {[%clk 0:00:08]} 49. e5 {[%clk 0:00:05]}  Kxa5 {[%clk 0:00:08]} 50. Ke4 {[%clk 0:00:06]}  g6 {[%clk 0:00:06]} 51. Kd5 {[%clk 0:00:06]}  Nc7+ {[%clk 0:00:06]} 52. Kd6 {[%clk 0:00:07]}  Kb6 {[%clk 0:00:06]} 53. e6 {[%clk 0:00:07]}  h5 {[%clk 0:00:07]} 54. gxh5 {[%clk 0:00:06]}  gxh5 {[%clk 0:00:07]} 55. Ke5 {[%clk 0:00:07]}  Nxe6 {[%clk 0:00:07]} 56. Kf5 {[%clk 0:00:05]}  Ng7+ {[%clk 0:00:07]} 57. Kg5 {[%clk 0:00:05]}  Kc5 {[%clk 0:00:08]} 58. Kh4 {[%clk 0:00:06]}  Kd5 {[%clk 0:00:09]} 59. Kg5 {[%clk 0:00:07]}  Ke5 {[%clk 0:00:09]} 60. Kh4 {[%clk 0:00:08]}  Kf5 {[%clk 0:00:09]} 61. Kh3 {[%clk 0:00:08]}  Kg5 {[%clk 0:00:10]} 62. Kg3 {[%clk 0:00:09]}  Ne6 {[%clk 0:00:10]} 63. Kh3 {[%clk 0:00:10]}  Nc5 {[%clk 0:00:11]} 64. Kh2 {[%clk 0:00:11]}  Kg4 {[%clk 0:00:11]} 65. Kg2 {[%clk 0:00:11]}  h4 {[%clk 0:00:12]} 66. Kh2 {[%clk 0:00:12]}  h3 {[%clk 0:00:12]} 67. Kh1 {[%clk 0:00:13]}  Kg3 {[%clk 0:00:13]} 68. Kg1 {[%clk 0:00:14]}  Ne4 {[%clk 0:00:13]} 69. Kh1 {[%clk 0:00:15]}  Nf2+ {[%clk 0:00:14]} 70. Kg1 {[%clk 0:00:16]}  h2+ {[%clk 0:00:14]} 71. Kf1 {[%clk 0:00:17]}  h1=Q+ {[%clk 0:00:15]} 72. Ke2 {[%clk 0:00:17]}  Qe4+ {[%clk 0:00:15]} 73. Kd2 {[%clk 0:00:18]}  Qd3+ {[%clk 0:00:16]} 74. Kc1 {[%clk 0:00:18]}  Qe2 {[%clk 0:00:16]} 75. Kb1 {[%clk 0:00:19]}  Nd3 {[%clk 0:00:17]} 76. Ka1 {[%clk 0:00:20]}  Qb2# {[%clk 0:00:17]} 0-1


[Site "https://www.chess.com"]

[Event "Titled Tuesday Blitz June 20 Early 2023"]
[White "Atakhan, Abtin"]
[Black "Asavasaetakul, Chawit"]
[WhiteFideId "22502203"]
[BlackFideId "6204856"]
[WhiteElo "2008"]
[BlackElo "1919"]
[Result "0-1"]
[Round "7"]
[TimeControl "180+2"]
[Date "2023.06.20"]
[WhiteClock "0:00:00"]
[BlackClock "0:00:42"]
[Board "53"]

1. Nf3 {[%clk 0:03:00]}  d5 {[%clk 0:02:59]} 2. e3 {[%clk 0:02:39]}  Nf6 {[%clk 0:02:58]} 3. c4 {[%clk 0:02:40]}  c6 {[%clk 0:02:59]} 4. Nc3 {[%clk 0:02:40]}  a6 {[%clk 0:02:59]} 5. b3 {[%clk 0:02:41]}  Bf5 {[%clk 0:02:59]} 6. Bb2 {[%clk 0:02:40]}  e6 {[%clk 0:02:59]} 7. Nh4 {[%clk 0:02:40]}  Bg4 {[%clk 0:02:59]} 8. Qc2 {[%clk 0:02:38]}  Nbd7 {[%clk 0:02:55]} 9. h3 {[%clk 0:02:35]}  Bh5 {[%clk 0:02:55]} 10. g4 {[%clk 0:02:35]}  Bg6 {[%clk 0:02:55]} 11. Nxg6 {[%clk 0:02:34]}  hxg6 {[%clk 0:02:56]} 12. Bg2 {[%clk 0:02:32]}  dxc4 {[%clk 0:02:53]} 13. bxc4 {[%clk 0:02:32]}  Ne5 {[%clk 0:02:54]} 14. Ne2 {[%clk 0:01:55]}  Nd3+ {[%clk 0:02:52]} 15. Kf1 {[%clk 0:01:54]}  Nxb2 {[%clk 0:02:23]} 16. Qxb2 {[%clk 0:01:55]}  Qc7 {[%clk 0:02:23]} 17. g5 {[%clk 0:01:52]}  Nd7 {[%clk 0:02:18]} 18. Rb1 {[%clk 0:01:52]}  Rb8 {[%clk 0:02:17]} 19. f4 {[%clk 0:01:50]}  e5 {[%clk 0:02:00]} 20. Bf3 {[%clk 0:01:46]}  Bd6 {[%clk 0:01:55]} 21. d4 {[%clk 0:01:34]}  exd4 {[%clk 0:01:47]} 22. Nxd4 {[%clk 0:01:19]}  O-O {[%clk 0:01:43]} 23. Kg2 {[%clk 0:01:16]}  Rfe8 {[%clk 0:01:43]} 24. Qc3 {[%clk 0:01:00]}  Nc5 {[%clk 0:01:39]} 25. h4 {[%clk 0:00:56]}  Qe7 {[%clk 0:01:14]} 26. Kf2 {[%clk 0:00:36]}  Ne4+ {[%clk 0:01:11]} 27. Bxe4 {[%clk 0:00:36]}  Qxe4 {[%clk 0:01:12]} 28. h5 {[%clk 0:00:32]}  Rbd8 {[%clk 0:01:05]} 29. Rbd1 {[%clk 0:00:19]}  Bc5 {[%clk 0:01:00]} 30. Rh4 {[%clk 0:00:11]}  gxh5 {[%clk 0:00:49]} 31. Rd2 {[%clk 0:00:08]}  Bxd4 {[%clk 0:00:47]} 32. Rxd4 {[%clk 0:00:05]}  Rxd4 {[%clk 0:00:47]} 33. Qxd4 {[%clk 0:00:04]}  Qxd4 {[%clk 0:00:45]} 34. exd4 {[%clk 0:00:05]}  Re4 {[%clk 0:00:45]} 35. d5 {[%clk 0:00:04]}  Rxc4 {[%clk 0:00:45]} 36. dxc6 {[%clk 0:00:04]}  Rxc6 {[%clk 0:00:45]} 37. Rxh5 {[%clk 0:00:04]}  Rc2+ {[%clk 0:00:45]} 38. Ke3 {[%clk 0:00:05]}  Rxa2 {[%clk 0:00:45]} 39. f5 {[%clk 0:00:05]}  g6 {[%clk 0:00:44]} 40. fxg6 {[%clk 0:00:04]}  fxg6 {[%clk 0:00:45]} 41. Rh1 {[%clk 0:00:02]}  Ra5 {[%clk 0:00:44]} 42. Kf4 {[%clk 0:00:02]}  Rf5+ {[%clk 0:00:44]} 43. Kg4 {[%clk 0:00:03]}  a5 {[%clk 0:00:42]} 44. Rb1 {[%clk 0:00:02]}  b5 {[%clk 0:00:42]} 45. Rc1 {[%clk 0:00:02]}  b4 {[%clk 0:00:42]} 46. Rc6 {[%clk 0:00:02]}  Kg7 {[%clk 0:00:42]} 47. Ra6 {[%clk 0:00:03]}  Rb5 {[%clk 0:00:41]} 48. Ra7+ {[%clk 0:00:00]}  Kf8 {[%clk 0:00:42]} 0-1


[Site "https://www.chess.com"]

[Event "Titled Tuesday Blitz June 20 Early 2023"]
[White "Petrosian, Karlen"]
[Black "Toropov, Pavel"]
[WhiteFideId "4176146"]
[BlackFideId "24129178"]
[WhiteElo "2345"]
[BlackElo "2182"]
[Result "1-0"]
[Round "7"]
[TimeControl "180+2"]
[Date "2023.06.20"]
[WhiteClock "0:01:20"]
[BlackClock "0:00:35"]
[Board "55"]

1. e4 {[%clk 0:03:00]}  e6 {[%clk 0:02:49]} 2. Qe2 {[%clk 0:03:00]}  d5 {[%clk 0:02:50]} 3. exd5 {[%clk 0:03:00]}  Qxd5 {[%clk 0:02:50]} 4. Nc3 {[%clk 0:03:01]}  Qd8 {[%clk 0:02:50]} 5. b3 {[%clk 0:03:01]}  Nf6 {[%clk 0:02:51]} 6. Bb2 {[%clk 0:03:02]}  Be7 {[%clk 0:02:51]} 7. O-O-O {[%clk 0:03:02]}  O-O {[%clk 0:02:52]} 8. g4 {[%clk 0:03:02]}  Nc6 {[%clk 0:02:50]} 9. g5 {[%clk 0:02:59]}  Nd5 {[%clk 0:02:50]} 10. Nf3 {[%clk 0:03:00]}  Nxc3 {[%clk 0:02:36]} 11. Bxc3 {[%clk 0:02:53]}  Ba3+ {[%clk 0:02:24]} 12. Kb1 {[%clk 0:02:52]}  a5 {[%clk 0:02:25]} 13. Ne5 {[%clk 0:02:45]}  Ne7 {[%clk 0:02:20]} 14. Ng4 {[%clk 0:02:23]}  Nd5 {[%clk 0:02:17]} 15. Ba1 {[%clk 0:02:21]}  Qxg5 {[%clk 0:01:49]} 16. Rg1 {[%clk 0:02:18]}  Kh8 {[%clk 0:01:28]} 17. h4 {[%clk 0:01:42]}  Qxh4 {[%clk 0:01:20]} 18. Bxg7+ {[%clk 0:01:26]}  Kxg7 {[%clk 0:01:20]} 19. Qe5+ {[%clk 0:01:27]}  f6 {[%clk 0:01:03]} 20. Nxf6+ {[%clk 0:01:27]}  Kf7 {[%clk 0:00:37]} 21. Nxd5 {[%clk 0:01:27]}  Qh6 {[%clk 0:00:37]} 22. Qxc7+ {[%clk 0:01:20]}  Ke8 {[%clk 0:00:36]} 23. Bb5+ {[%clk 0:01:20]}  Bd7 {[%clk 0:00:35]} 24. Qxd7# {[%clk 0:01:20]} 1-0


[Site "https://www.chess.com"]

[Event "Titled Tuesday Blitz June 20 Early 2023"]
[White "angelgab3"]
[Black "Lamard, Guillaume"]
[BlackFideId "600261"]
[WhiteElo "2527"]
[BlackElo "2413"]
[Result "1-0"]
[Round "7"]
[TimeControl "180+2"]
[Date "2023.06.20"]
[WhiteClock "0:00:21"]
[BlackClock "0:00:00"]
[Board "56"]

1. e4 {[%clk 0:03:00]}  c6 {[%clk 0:02:57]} 2. d4 {[%clk 0:03:00]}  d5 {[%clk 0:02:56]} 3. e5 {[%clk 0:03:01]}  Bf5 {[%clk 0:02:56]} 4. Nf3 {[%clk 0:03:01]}  e6 {[%clk 0:02:55]} 5. Be2 {[%clk 0:03:02]}  Nd7 {[%clk 0:02:51]} 6. O-O {[%clk 0:02:59]}  a5 {[%clk 0:02:51]} 7. a4 {[%clk 0:02:56]}  f6 {[%clk 0:02:40]} 8. Nh4 {[%clk 0:02:44]}  fxe5 {[%clk 0:02:35]} 9. Nxf5 {[%clk 0:02:44]}  exf5 {[%clk 0:02:34]} 10. dxe5 {[%clk 0:02:45]}  Nxe5 {[%clk 0:02:31]} 11. Re1 {[%clk 0:02:45]}  Kf7 {[%clk 0:02:24]} 12. Bh5+ {[%clk 0:02:32]}  Ng6 {[%clk 0:02:23]} 13. Qf3 {[%clk 0:02:33]}  Qd7 {[%clk 0:02:16]} 14. Nc3 {[%clk 0:02:27]}  Nf6 {[%clk 0:02:15]} 15. Bg5 {[%clk 0:02:25]}  Bd6 {[%clk 0:02:05]} 16. Ne2 {[%clk 0:02:15]}  Ne4 {[%clk 0:02:02]} 17. Be3 {[%clk 0:02:06]}  Rhe8 {[%clk 0:01:57]} 18. Nd4 {[%clk 0:02:05]}  Kg8 {[%clk 0:01:51]} 19. Qxf5 {[%clk 0:02:01]}  Qc7 {[%clk 0:01:46]} 20. g3 {[%clk 0:01:52]}  Re5 {[%clk 0:01:32]} 21. Qh3 {[%clk 0:01:47]}  Rf8 {[%clk 0:01:33]} 22. Ne6 {[%clk 0:01:24]}  Qd7 {[%clk 0:01:26]} 23. Bg4 {[%clk 0:01:24]}  Rf6 {[%clk 0:01:19]} 24. Ng5 {[%clk 0:01:22]}  Qe7 {[%clk 0:00:57]} 25. Qxh7+ {[%clk 0:01:11]}  Kf8 {[%clk 0:00:56]} 26. Nf3 {[%clk 0:00:56]}  Rxf3 {[%clk 0:00:36]} 27. Bxf3 {[%clk 0:00:56]}  Qf6 {[%clk 0:00:31]} 28. Bh5 {[%clk 0:00:48]}  Ne7 {[%clk 0:00:22]} 29. c3 {[%clk 0:00:29]}  Rf5 {[%clk 0:00:20]} 30. Bd4 {[%clk 0:00:28]}  Qg5 {[%clk 0:00:18]} 31. Be2 {[%clk 0:00:19]}  Ng8 {[%clk 0:00:16]} 32. Qh3 {[%clk 0:00:19]}  c5 {[%clk 0:00:14]} 33. Be3 {[%clk 0:00:18]}  Qf6 {[%clk 0:00:14]} 34. Bg4 {[%clk 0:00:18]}  Rxf2 {[%clk 0:00:14]} 35. Bxf2 {[%clk 0:00:19]}  Qxf2+ {[%clk 0:00:14]} 36. Kh1 {[%clk 0:00:20]}  Ngf6 {[%clk 0:00:11]} 37. Rf1 {[%clk 0:00:19]}  Qe3 {[%clk 0:00:12]} 38. Qg2 {[%clk 0:00:19]}  Ke7 {[%clk 0:00:10]} 39. Bf3 {[%clk 0:00:19]}  g5 {[%clk 0:00:06]} 40. Rae1 {[%clk 0:00:20]}  Qd3 {[%clk 0:00:06]} 41. Be2 {[%clk 0:00:20]}  Qc2 {[%clk 0:00:05]} 42. c4 {[%clk 0:00:20]}  d4 {[%clk 0:00:03]} 43. Bf3 {[%clk 0:00:21]}  Qd3 {[%clk 0:00:00]} 44. Bxe4 {[%clk 0:00:21]} 1-0


[Site "https://www.chess.com"]

[Event "Titled Tuesday Blitz June 20 Early 2023"]
[White "Zaitsev, Alexander"]
[Black "Postny, Evgeny"]
[WhiteFideId "4164490"]
[BlackFideId "2804344"]
[WhiteElo "2373"]
[BlackElo "2504"]
[Result "1/2-1/2"]
[Round "7"]
[TimeControl "180+2"]
[Date "2023.06.20"]
[WhiteClock "0:00:09"]
[BlackClock "0:00:03"]
[Board "58"]

1. e4 {[%clk 0:03:00]}  c5 {[%clk 0:02:58]} 2. Nf3 {[%clk 0:03:00]}  Nc6 {[%clk 0:02:54]} 3. Bb5 {[%clk 0:03:00]}  d6 {[%clk 0:02:53]} 4. d4 {[%clk 0:03:00]}  cxd4 {[%clk 0:02:52]} 5. Qxd4 {[%clk 0:03:01]}  Bd7 {[%clk 0:02:53]} 6. Bxc6 {[%clk 0:03:01]}  bxc6 {[%clk 0:02:53]} 7. Nc3 {[%clk 0:03:02]}  e5 {[%clk 0:02:52]} 8. Qd3 {[%clk 0:03:02]}  h6 {[%clk 0:02:52]} 9. O-O {[%clk 0:03:02]}  Nf6 {[%clk 0:02:52]} 10. Na4 {[%clk 0:02:55]}  Be7 {[%clk 0:02:34]} 11. c4 {[%clk 0:02:55]}  Qc7 {[%clk 0:02:34]} 12. b3 {[%clk 0:02:17]}  O-O {[%clk 0:02:31]} 13. Qe2 {[%clk 0:02:12]}  Rfe8 {[%clk 0:02:27]} 14. Bb2 {[%clk 0:02:06]}  Bf8 {[%clk 0:02:25]} 15. c5 {[%clk 0:01:54]}  d5 {[%clk 0:02:20]} 16. exd5 {[%clk 0:01:54]}  cxd5 {[%clk 0:02:21]} 17. Bxe5 {[%clk 0:01:50]}  Bxa4 {[%clk 0:02:19]} 18. bxa4 {[%clk 0:01:30]}  Qxc5 {[%clk 0:02:15]} 19. Qb5 {[%clk 0:01:25]}  Ne4 {[%clk 0:02:01]} 20. Rac1 {[%clk 0:01:22]}  Qxb5 {[%clk 0:01:29]} 21. axb5 {[%clk 0:01:23]}  Re6 {[%clk 0:01:29]} 22. Rfd1 {[%clk 0:01:18]}  Bc5 {[%clk 0:01:24]} 23. Bd4 {[%clk 0:01:16]}  Bb6 {[%clk 0:01:19]} 24. Bxb6 {[%clk 0:00:51]}  axb6 {[%clk 0:01:15]} 25. Rc2 {[%clk 0:00:51]}  Ra3 {[%clk 0:00:46]} 26. Rxd5 {[%clk 0:00:38]}  Nc3 {[%clk 0:00:42]} 27. Rd8+ {[%clk 0:00:28]}  Kh7 {[%clk 0:00:42]} 28. h4 {[%clk 0:00:22]}  Nxb5 {[%clk 0:00:30]} 29. h5 {[%clk 0:00:20]}  Rc3 {[%clk 0:00:26]} 30. Rb2 {[%clk 0:00:17]}  Rc5 {[%clk 0:00:21]} 31. Rd7 {[%clk 0:00:15]}  Rxh5 {[%clk 0:00:15]} 32. Rxf7 {[%clk 0:00:14]}  Nd4 {[%clk 0:00:15]} 33. g4 {[%clk 0:00:11]}  Nxf3+ {[%clk 0:00:12]} 34. Rxf3 {[%clk 0:00:12]}  Rg5 {[%clk 0:00:12]} 35. Rg3 {[%clk 0:00:12]}  Rc5 {[%clk 0:00:04]} 36. Kg2 {[%clk 0:00:12]}  Rc4 {[%clk 0:00:05]} 37. Kh3 {[%clk 0:00:08]}  Rg6 {[%clk 0:00:05]} 38. Rd2 {[%clk 0:00:06]}  Ra4 {[%clk 0:00:04]} 39. Rc2 {[%clk 0:00:06]}  Rg5 {[%clk 0:00:04]} 40. Rb2 {[%clk 0:00:06]}  Rg6 {[%clk 0:00:03]} 41. Rc2 {[%clk 0:00:06]}  Re6 {[%clk 0:00:03]} 42. Rb2 {[%clk 0:00:07]}  Ra5 {[%clk 0:00:03]} 43. Kg2 {[%clk 0:00:07]}  Ra4 {[%clk 0:00:03]} 44. Rc2 {[%clk 0:00:07]}  Rf6 {[%clk 0:00:03]} 45. Rb2 {[%clk 0:00:07]}  Raf4 {[%clk 0:00:04]} 46. f3 {[%clk 0:00:06]}  Rc4 {[%clk 0:00:03]} 47. Kh3 {[%clk 0:00:06]}  Rfc6 {[%clk 0:00:04]} 48. Rd2 {[%clk 0:00:05]}  Rc2 {[%clk 0:00:04]} 49. Rgg2 {[%clk 0:00:06]}  Rxd2 {[%clk 0:00:04]} 50. Rxd2 {[%clk 0:00:07]}  Rc3 {[%clk 0:00:04]} 51. Kg3 {[%clk 0:00:07]}  Ra3 {[%clk 0:00:04]} 52. Rb2 {[%clk 0:00:08]}  Ra4 {[%clk 0:00:04]} 53. Rb3 {[%clk 0:00:08]}  Rxa2 {[%clk 0:00:04]} 54. Rxb6 {[%clk 0:00:08]}  Ra4 {[%clk 0:00:04]} 55. Rb5 {[%clk 0:00:09]}  Rc4 {[%clk 0:00:05]} 56. Ra5 {[%clk 0:00:09]}  Rb4 {[%clk 0:00:03]} 1/2-1/2


[Site "https://www.chess.com"]

[Event "Titled Tuesday Blitz June 20 Early 2023"]
[White "Goryachkina, Aleksandra"]
[Black "Bogaudinov, Rushan"]
[WhiteFideId "4147103"]
[BlackFideId "4129288"]
[WhiteElo "2471"]
[BlackElo "1967"]
[Result "1-0"]
[Round "7"]
[TimeControl "180+2"]
[Date "2023.06.20"]
[WhiteClock "0:00:13"]
[BlackClock "0:00:09"]
[Board "59"]

1. e4 {[%clk 0:02:59]}  a6 {[%clk 0:02:59]} 2. d4 {[%clk 0:02:56]}  e6 {[%clk 0:02:59]} 3. Bd3 {[%clk 0:02:55]}  d6 {[%clk 0:02:56]} 4. Nf3 {[%clk 0:02:53]}  Be7 {[%clk 0:02:56]} 5. Nbd2 {[%clk 0:02:52]}  Nf6 {[%clk 0:02:53]} 6. Nf1 {[%clk 0:02:51]}  b5 {[%clk 0:02:52]} 7. Ng3 {[%clk 0:02:50]}  Bb7 {[%clk 0:02:52]} 8. Qe2 {[%clk 0:02:49]}  c5 {[%clk 0:02:49]} 9. c3 {[%clk 0:02:47]}  cxd4 {[%clk 0:02:40]} 10. cxd4 {[%clk 0:02:46]}  d5 {[%clk 0:02:35]} 11. e5 {[%clk 0:02:42]}  Nfd7 {[%clk 0:02:34]} 12. O-O {[%clk 0:02:36]}  Nc6 {[%clk 0:02:34]} 13. Be3 {[%clk 0:02:32]}  Nb6 {[%clk 0:02:31]} 14. b3 {[%clk 0:02:23]}  Nb4 {[%clk 0:02:27]} 15. Bb1 {[%clk 0:02:20]}  Rc8 {[%clk 0:02:27]} 16. Ne1 {[%clk 0:01:55]}  Qc7 {[%clk 0:02:06]} 17. Bd2 {[%clk 0:01:16]}  Nc6 {[%clk 0:01:57]} 18. Qe3 {[%clk 0:01:16]}  a5 {[%clk 0:01:53]} 19. Bd3 {[%clk 0:01:14]}  b4 {[%clk 0:01:14]} 20. Rc1 {[%clk 0:01:13]}  Qb8 {[%clk 0:01:10]} 21. Bb5 {[%clk 0:00:53]}  Qa8 {[%clk 0:01:04]} 22. Qd3 {[%clk 0:00:45]}  Nd7 {[%clk 0:01:01]} 23. f4 {[%clk 0:00:35]}  Na7 {[%clk 0:00:56]} 24. Ba4 {[%clk 0:00:28]}  Bc6 {[%clk 0:00:51]} 25. Bxc6 {[%clk 0:00:24]}  Rxc6 {[%clk 0:00:49]} 26. f5 {[%clk 0:00:24]}  Rxc1 {[%clk 0:00:46]} 27. Bxc1 {[%clk 0:00:25]}  Qc6 {[%clk 0:00:44]} 28. Bd2 {[%clk 0:00:25]}  Nb5 {[%clk 0:00:40]} 29. Nf3 {[%clk 0:00:23]}  Nc3 {[%clk 0:00:32]} 30. Rc1 {[%clk 0:00:22]}  O-O {[%clk 0:00:25]} 31. Bxc3 {[%clk 0:00:22]}  bxc3 {[%clk 0:00:26]} 32. Qxc3 {[%clk 0:00:22]}  Qb6 {[%clk 0:00:18]} 33. Qc7 {[%clk 0:00:22]}  Qxc7 {[%clk 0:00:18]} 34. Rxc7 {[%clk 0:00:22]}  Rd8 {[%clk 0:00:19]} 35. fxe6 {[%clk 0:00:19]}  fxe6 {[%clk 0:00:19]} 36. Nh5 {[%clk 0:00:19]}  Nf8 {[%clk 0:00:16]} 37. Nf4 {[%clk 0:00:18]}  Kf7 {[%clk 0:00:13]} 38. Ng5+ {[%clk 0:00:16]}  Ke8 {[%clk 0:00:14]} 39. Ngxe6 {[%clk 0:00:17]}  Nxe6 {[%clk 0:00:14]} 40. Nxe6 {[%clk 0:00:18]}  Ra8 {[%clk 0:00:13]} 41. Nxg7+ {[%clk 0:00:17]}  Kd8 {[%clk 0:00:13]} 42. Ne6+ {[%clk 0:00:17]}  Ke8 {[%clk 0:00:13]} 43. Nf4 {[%clk 0:00:16]}  a4 {[%clk 0:00:13]} 44. Nxd5 {[%clk 0:00:16]}  Bd8 {[%clk 0:00:13]} 45. Rxh7 {[%clk 0:00:15]}  axb3 {[%clk 0:00:13]} 46. axb3 {[%clk 0:00:16]}  Ra3 {[%clk 0:00:12]} 47. e6 {[%clk 0:00:13]}  Ra1+ {[%clk 0:00:10]} 48. Kf2 {[%clk 0:00:13]}  Be7 {[%clk 0:00:09]} 49. Rxe7+ {[%clk 0:00:11]}  Kf8 {[%clk 0:00:10]} 50. Rf7+ {[%clk 0:00:12]}  Ke8 {[%clk 0:00:10]} 51. Nf6+ {[%clk 0:00:12]}  Kd8 {[%clk 0:00:10]} 52. e7+ {[%clk 0:00:13]}  Kc7 {[%clk 0:00:10]} 53. e8=Q+ {[%clk 0:00:13]}  Kd6 {[%clk 0:00:09]} 54. Qe5+ {[%clk 0:00:13]}  Kc6 {[%clk 0:00:09]} 55. Qc5# {[%clk 0:00:13]} 1-0


[Site "https://www.chess.com"]